Workbook

Sheet Ditte
B1: INIZIO ORE 10:40 | D1: Stralcio del verbale di gara | H1: DATA | I1: 2017-10-27
A2: LEGGE 191/2009 - TERZO ACCORDO DI PROGRAMMA - COD. 1ER1126 - COMUNE DI VENTASSO (RE) - LAVORI DI CONSOLIDAMENTO E MESSA IN SICUREZZA DEL SETTORE OVEST DEL DISSESTO IDROGEOLOGICO CHE COINVOLGE L'ABITATO DI TAVIANO
B3: Offerte pervenute | C3: =COUNTA(B6:B86) -> 19
B4: Offerte regolari | C4: =COUNT(A6:A86) -> 19
A5: N | B5: Nome Ditta | D5: Ribasso % | H5: Valore appalto | I5: 349969.48
A6: 1 | B6: CEIS SRL | D6: 0.01111 | H6: Oneri per la sicurezza | I6: 2968
A7: =IF(OR(B7="",D7=""),"",A6+1) -> 2 | B7: MONTANA VALLE DEL LAMONE | D7: 0.0599 | H7: Lavori sogg. ribasso | I7: =I5-I6 -> 347001.48
A8: =IF(OR(B8="",D8=""),"",IF(A7="",COUNT($A$6:A7)+1,A7+1)) -> 3 | B8: BERTI SISTO | D8: 0.13844
A9: =IF(OR(B9="",D9=""),"",IF(A8="",COUNT($A$6:A8)+1,A8+1)) -> 4 | B9: ITALSCAVI SPA | D9: 0.1401
A10: =IF(OR(B10="",D10=""),"",IF(A9="",COUNT($A$6:A9)+1,A9+1)) -> 5 | B10: AMBROGETTI SRL | D10: 0.14132
A11: =IF(OR(B11="",D11=""),"",IF(A10="",COUNT($A$6:A10)+1,A10+1)) -> 6 | B11: GAETTI COSTRUZIONI SRL | D11: 0.15334
A12: =IF(OR(B12="",D12=""),"",IF(A11="",COUNT($A$6:A11)+1,A11+1)) -> 7 | B12: L.S. NORD SRL | D12: 0.15573 | H12: Estrazione del lotto del | I12: 2017-10-26
A13: =IF(OR(B13="",D13=""),"",IF(A12="",COUNT($A$6:A12)+1,A12+1)) -> 8 | B13: EDILIZIA DEL COM.BELLI | D13: 0.15694 | H13: Seme generatore 1° estratto ruota di Bari n. | I13: 16
A14: =IF(OR(B14="",D14=""),"",IF(A13="",COUNT($A$6:A13)+1,A13+1)) -> 9 | B14: ZANNINI | D14: 0.16099 | H14: Metodo sorteggiato art. 97 DLGS n. 50/16 | I14: B)
A15: =IF(OR(B15="",D15=""),"",IF(A14="",COUNT($A$6:A14)+1,A14+1)) -> 10 | B15: COAF SOC.COOP | D15: 0.1613
A16: =IF(OR(B16="",D16=""),"",IF(A15="",COUNT($A$6:A15)+1,A15+1)) -> 11 | B16: CORMA CONS. | D16: 0.16413 | H16: PRESIDENTE DI GARA
A17: =IF(OR(B17="",D17=""),"",IF(A16="",COUNT($A$6:A16)+1,A16+1)) -> 12 | B17: CSA CONS. SERVIZI APPALTI | D17: 0.16771 | H17: Ing. Francesco Capuano
A18: =IF(OR(B18="",D18=""),"",IF(A17="",COUNT($A$6:A17)+1,A17+1)) -> 13 | B18: CAMAR SOC. COOP. | D18: 0.18552
A19: =IF(OR(B19="",D19=""),"",IF(A18="",COUNT($A$6:A18)+1,A18+1)) -> 14 | B19: CME | D19: 0.18888
A20: =IF(OR(B20="",D20=""),"",IF(A19="",COUNT($A$6:A19)+1,A19+1)) -> 15 | B20: FRATELLI DI CARLO SRL | D20: 0.199
A21: =IF(OR(B21="",D21=""),"",IF(A20="",COUNT($A$6:A20)+1,A20+1)) -> 16 | B21: GRENTI SRL | D21: 0.19992
A22: =IF(OR(B22="",D22=""),"",IF(A21="",COUNT($A$6:A21)+1,A21+1)) -> 17 | B22: EDIL DUE SRL | D22: 0.2025
A23: =IF(OR(B23="",D23=""),"",IF(A22="",COUNT($A$6:A22)+1,A22+1)) -> 18 | B23: CFC COSTRUZIONI | D23: 0.21377
A24: =IF(OR(B24="",D24=""),"",IF(A23="",COUNT($A$6:A23)+1,A23+1)) -> 19 | B24: CIPAR SRL | D24: 0.2226
A25: =IF(OR(B25="",D25=""),"",IF(A24="",COUNT($A$6:A24)+1,A24+1)) -> 
A26: =IF(OR(B26="",D26=""),"",IF(A25="",COUNT($A$6:A25)+1,A25+1)) -> 
A27: =IF(OR(B27="",D27=""),"",IF(A26="",COUNT($A$6:A26)+1,A26+1)) -> 
A28: =IF(OR(B28="",D28=""),"",IF(A27="",COUNT($A$6:A27)+1,A27+1)) -> 
A29: =IF(OR(B29="",D29=""),"",IF(A28="",COUNT($A$6:A28)+1,A28+1)) -> 
A30: =IF(OR(B30="",D30=""),"",IF(A29="",COUNT($A$6:A29)+1,A29+1)) -> 
A31: =IF(OR(B31="",D31=""),"",IF(A30="",COUNT($A$6:A30)+1,A30+1)) -> 
A32: =IF(OR(B32="",D32=""),"",IF(A31="",COUNT($A$6:A31)+1,A31+1)) -> 
A33: =IF(OR(B33="",D33=""),"",IF(A32="",COUNT($A$6:A32)+1,A32+1)) -> 
A34: =IF(OR(B34="",D34=""),"",IF(A33="",COUNT($A$6:A33)+1,A33+1)) -> 
A35: =IF(OR(B35="",D35=""),"",IF(A34="",COUNT($A$6:A34)+1,A34+1)) -> 
A36: =IF(OR(B36="",D36=""),"",IF(A35="",COUNT($A$6:A35)+1,A35+1)) -> 

Sheet Metodo a
C1: =Ditte!B1 -> INIZIO ORE 10:40 | D1: Stralcio del verbale di gara | L1: DATA | M1: =Ditte!I1 -> 2017-10-27
A2: =Ditte!A2 -> LEGGE 191/2009 - TERZO ACCORDO DI PROGRAMMA - COD. 1ER1126 - COMUNE DI VENTASSO (RE) - LAVORI DI CONSOLIDAMENTO E MESSA IN SICUREZZA DEL SETTORE OVEST DEL DISSESTO IDROGEOLOGICO CHE COINVOLGE L'ABITATO DI TAVIANO
C3: Offerte pervenute | D3: =Ditte!C3 -> 19 | L3: =Ditte!H12 -> Estrazione del lotto del | M3: =Ditte!I12 -> 2017-10-26
C4: Offerte regolari | D4: =Ditte!C4 -> 19 | L4: =Ditte!H13 -> Seme generatore 1° estratto ruota di Bari n. | M4: =Ditte!I13 -> 16
A5: N | C5: Nome Ditta | D5: Ribasso % | E5: Importo offerto | F5: Valide | G5: Scostamento | H5: Offerte Ammesse | L5: =Ditte!H14 -> Metodo sorteggiato art. 97 DLGS n. 50/16 | M5: =Ditte!I14 -> B)
A6: =IF(Ditte!A6>=1,Ditte!A6," ") -> 1 | B6: =H6 ->  | C6: =IF(Ditte!B6=0," ",Ditte!B6) -> CEIS SRL | D6: =IF(Ditte!D6=0," ",Ditte!D6) -> 0.01111 | E6: =IF(D6=" "," ",$M$8*(1-D6)+$M$7) -> 346114.29 | F6: =IF(AND(A6>$M$18,A6<=(COUNT($A:$A)-$M$18)),D6," ") ->  | G6: =IF(F6=" "," ",IF(F6>=MediaR,F6-MediaR,"")) ->  | H6: =IF(F6=" "," ",IF(F6<MediaF,F6,"Anomala")) ->  | I6: =IF(H6=Vincitore,"PROPOSTA DI AGGIUDICAZIONE","") -> 
A7: =IF(Ditte!A7>=1,Ditte!A7," ") -> 2 | B7: =H7 ->  | C7: =IF(Ditte!B7=0," ",Ditte!B7) -> MONTANA VALLE DEL LAMONE | D7: =IF(Ditte!D7=0," ",Ditte!D7) -> 0.0599 | E7: 329184.09 | F7: =IF(AND(A7>$M$18,A7<=(COUNT($A:$A)-$M$18)),D7," ") ->  | L7: Oneri per la sicurezza | M7: =Ditte!I6 -> 2968
A8: =IF(Ditte!A8>=1,Ditte!A8," ") -> 3 | C8: =IF(Ditte!B8=0," ",Ditte!B8) -> BERTI SISTO | D8: =IF(Ditte!D8=0," ",Ditte!D8) -> 0.13844 | E8: 301930.6 | L8: Lavori sogg. ribasso | M8: =M9-M7 -> 347001.48
A9: =IF(Ditte!A9>=1,Ditte!A9," ") -> 4 | C9: =IF(Ditte!B9=0," ",Ditte!B9) -> ITALSCAVI SPA | D9: =IF(Ditte!D9=0," ",Ditte!D9) -> 0.1401 | E9: 301354.57 | L9: Valore appalto | M9: =Ditte!I5 -> 349969.48
A10: =IF(Ditte!A10>=1,Ditte!A10," ") -> 5 | B10: 0.14132 | C10: =IF(Ditte!B10=0," ",Ditte!B10) -> AMBROGETTI SRL | D10: =IF(Ditte!D10=0," ",Ditte!D10) -> 0.14132 | E10: 300931.23 | F10: 0.14132 | H10: 0.14132 | L10: Media ribasso valido | M10: =AVERAGE(F:F) -> 0.1668055
A11: =IF(Ditte!A11>=1,Ditte!A11," ") -> 6 | B11: 0.15334 | C11: =IF(Ditte!B11=0," ",Ditte!B11) -> GAETTI COSTRUZIONI SRL | D11: =IF(Ditte!D11=0," ",Ditte!D11) -> 0.15334 | E11: 296760.27 | F11: 0.15334 | H11: 0.15334 | L11: Media scostamenti | M11: =AVERAGE(G:G) -> 0.018472
A12: =IF(Ditte!A12>=1,Ditte!A12," ") -> 7 | B12: 0.15573 | C12: =IF(Ditte!B12=0," ",Ditte!B12) -> L.S. NORD SRL | D12: =IF(Ditte!D12=0," ",Ditte!D12) -> 0.15573 | E12: 295930.94 | F12: 0.15573 | H12: 0.15573 | L12: Soglia anomalia | M12: =MediaR+MediaS -> 0.1852775
A13: =IF(Ditte!A13>=1,Ditte!A13," ") -> 8 | B13: 0.15694 | C13: =IF(Ditte!B13=0," ",Ditte!B13) -> EDILIZIA DEL COM.BELLI | D13: =IF(Ditte!D13=0," ",Ditte!D13) -> 0.15694 | E13: 295511.07 | F13: 0.15694 | H13: 0.15694 | L13: % PROPOSTA DI AGGIUDICAZIONE | M13: =MAX(H:H) -> 0.16771
A14: =IF(Ditte!A14>=1,Ditte!A14," ") -> 9 | B14: 0.16099 | C14: =IF(Ditte!B14=0," ",Ditte!B14) -> ZANNINI | D14: =IF(Ditte!D14=0," ",Ditte!D14) -> 0.16099 | E14: 294105.71 | F14: 0.16099 | H14: 0.16099 | L14: Nome ditta PROPOSTA DI AGGIUDICAZIONE
A15: =IF(Ditte!A15>=1,Ditte!A15," ") -> 10 | B15: 0.1613 | C15: =IF(Ditte!B15=0," ",Ditte!B15) -> COAF SOC.COOP | D15: =IF(Ditte!D15=0," ",Ditte!D15) -> 0.1613 | E15: 293998.14 | F15: 0.1613 | H15: 0.1613 | L15: =IF(COUNTA(I6:I35)-COUNTBLANK(I6:I35)=1,VLOOKUP(Vincitore,B6:C35,2),"C'E' PIU' DI UNA AGGIUDICAZIONE PROVVISORIA") -> CSA CONS. SERVIZI APPALTI
A16: =IF(Ditte!A16>=1,Ditte!A16," ") -> 11 | B16: 0.16413 | C16: =IF(Ditte!B16=0," ",Ditte!B16) -> CORMA CONS. | D16: =IF(Ditte!D16=0," ",Ditte!D16) -> 0.16413 | E16: 293016.13 | F16: 0.16413 | H16: 0.16413
A17: =IF(Ditte!A17>=1,Ditte!A17," ") -> 12 | B17: 0.16771 | C17: =IF(Ditte!B17=0," ",Ditte!B17) -> CSA CONS. SERVIZI APPALTI | D17: =IF(Ditte!D17=0," ",Ditte!D17) -> 0.16771 | E17: 291773.86 | F17: 0.16771 | G17: 0.0009045 | H17: 0.16771 | I17: PROPOSTA DI AGGIUDICAZIONE
A18: =IF(Ditte!A18>=1,Ditte!A18," ") -> 13 | B18: Anomala | C18: =IF(Ditte!B18=0," ",Ditte!B18) -> CAMAR SOC. COOP. | D18: =IF(Ditte!D18=0," ",Ditte!D18) -> 0.18552 | E18: 285593.77 | F18: 0.18552 | G18: 0.0187145 | H18: Anomala | L18: ALI N. | M18: =CEILING(0.2*COUNT(A:A),1) -> 4
A19: =IF(Ditte!A19>=1,Ditte!A19," ") -> 14 | B19: Anomala | C19: =IF(Ditte!B19=0," ",Ditte!B19) -> CME | D19: =IF(Ditte!D19=0," ",Ditte!D19) -> 0.18888 | E19: 284427.84 | F19: 0.18888 | G19: 0.0220745 | H19: Anomala
A20: =IF(Ditte!A20>=1,Ditte!A20," ") -> 15 | B20: Anomala | C20: =IF(Ditte!B20=0," ",Ditte!B20) -> FRATELLI DI CARLO SRL | D20: =IF(Ditte!D20=0," ",Ditte!D20) -> 0.199 | E20: 280916.19 | F20: 0.199 | G20: 0.0321945 | H20: Anomala
A21: =IF(Ditte!A21>=1,Ditte!A21," ") -> 16 | C21: =IF(Ditte!B21=0," ",Ditte!B21) -> GRENTI SRL | D21: =IF(Ditte!D21=0," ",Ditte!D21) -> 0.19992 | E21: 280596.94
A22: =IF(Ditte!A22>=1,Ditte!A22," ") -> 17 | C22: =IF(Ditte!B22=0," ",Ditte!B22) -> EDIL DUE SRL | D22: =IF(Ditte!D22=0," ",Ditte!D22) -> 0.2025 | E22: 279701.68
A23: =IF(Ditte!A23>=1,Ditte!A23," ") -> 18 | C23: =IF(Ditte!B23=0," ",Ditte!B23) -> CFC COSTRUZIONI | D23: =IF(Ditte!D23=0," ",Ditte!D23) -> 0.21377 | E23: 275790.97
A24: =IF(Ditte!A24>=1,Ditte!A24," ") -> 19 | C24: =IF(Ditte!B24=0," ",Ditte!B24) -> CIPAR SRL | D24: =IF(Ditte!D24=0," ",Ditte!D24) -> 0.2226 | E24: 272726.95 | L24: =Ditte!H16 -> PRESIDENTE DI GARA
A25: =IF(Ditte!A25>=1,Ditte!A25," ") ->  | C25: =IF(Ditte!B25=0," ",Ditte!B25) ->  | D25: =IF(Ditte!D25=0," ",Ditte!D25) ->  | L25: =Ditte!H17 -> Ing. Francesco Capuano
A26: =IF(Ditte!A26>=1,Ditte!A26," ") ->  | C26: =IF(Ditte!B26=0," ",Ditte!B26) ->  | D26: =IF(Ditte!D26=0," ",Ditte!D26) -> 
A27: =IF(Ditte!A27>=1,Ditte!A27," ") ->  | C27: =IF(Ditte!B27=0," ",Ditte!B27) ->  | D27: =IF(Ditte!D27=0," ",Ditte!D27) -> 
A28: =IF(Ditte!A28>=1,Ditte!A28," ") ->  | C28: =IF(Ditte!B28=0," ",Ditte!B28) ->  | D28: =IF(Ditte!D28=0," ",Ditte!D28) -> 
A29: =IF(Ditte!A29>=1,Ditte!A29," ") ->  | C29: =IF(Ditte!B29=0," ",Ditte!B29) ->  | D29: =IF(Ditte!D29=0," ",Ditte!D29) -> 
A30: =IF(Ditte!A30>=1,Ditte!A30," ") ->  | C30: =IF(Ditte!B30=0," ",Ditte!B30) ->  | D30: =IF(Ditte!D30=0," ",Ditte!D30) -> 
A31: =IF(Ditte!A31>=1,Ditte!A31," ") ->  | C31: =IF(Ditte!B31=0," ",Ditte!B31) ->  | D31: =IF(Ditte!D31=0," ",Ditte!D31) -> 
A32: =IF(Ditte!A32>=1,Ditte!A32," ") ->  | C32: =IF(Ditte!B32=0," ",Ditte!B32) ->  | D32: =IF(Ditte!D32=0," ",Ditte!D32) -> 
A33: =IF(Ditte!A33>=1,Ditte!A33," ") ->  | C33: =IF(Ditte!B33=0," ",Ditte!B33) ->  | D33: =IF(Ditte!D33=0," ",Ditte!D33) -> 
A34: =IF(Ditte!A34>=1,Ditte!A34," ") ->  | C34: =IF(Ditte!B34=0," ",Ditte!B34) ->  | D34: =IF(Ditte!D34=0," ",Ditte!D34) -> 
A35: =IF(Ditte!A35>=1,Ditte!A35," ") ->  | B35: =H35 ->  | C35: =IF(Ditte!B35=0," ",Ditte!B35) ->  | D35: =IF(Ditte!D35=0," ",Ditte!D35) ->  | E35: =IF(D35=" "," ",$M$8*(1-D35)+$M$7) ->  | F35: =IF(AND(A35>$M$18,A35<=(COUNT($A:$A)-$M$18)),D35," ") ->  | G35: =IF(F35=" "," ",IF(F35>=MediaR,F35-MediaR,"")) ->  | H35: =IF(F35=" "," ",IF(F35<MediaF,F35,"Anomala")) -> 

Sheet Metodo b
C1: =Ditte!B1 -> INIZIO ORE 10:40 | D1: Stralcio del verbale di gara | K1: DATA | L1: =Ditte!I1 -> 2017-10-27
A2: =Ditte!A2 -> LEGGE 191/2009 - TERZO ACCORDO DI PROGRAMMA - COD. 1ER1126 - COMUNE DI VENTASSO (RE) - LAVORI DI CONSOLIDAMENTO E MESSA IN SICUREZZA DEL SETTORE OVEST DEL DISSESTO IDROGEOLOGICO CHE COINVOLGE L'ABITATO DI TAVIANO
C3: Offerte pervenute | D3: =Ditte!C3 -> 19 | K3: =Ditte!H12 -> Estrazione del lotto del | L3: =Ditte!I12 -> 2017-10-26
C4: Offerte regolari | D4: =Ditte!C4 -> 19 | K4: =Ditte!H13 -> Seme generatore 1° estratto ruota di Bari n. | L4: =Ditte!I13 -> 16
A5: N | C5: Nome Ditta | D5: Ribasso % | E5: Importo offerto | F5: Valide | G5: Offerte Ammesse | K5: =Ditte!H14 -> Metodo sorteggiato art. 97 DLGS n. 50/16 | L5: =Ditte!I14 -> B)
A6: =IF(Ditte!A6>=1,Ditte!A6," ") -> 1 | B6: =G6 ->  | C6: =IF(Ditte!B6=0," ",Ditte!B6) -> CEIS SRL | D6: =IF(Ditte!D6=0," ",Ditte!D6) -> 0.01111 | E6: =IF(D6=" "," ",$L$8*(1-D6)+$L$7) -> 346114.29 | F6: =IF(AND(A6>$L$18,A6<=(COUNT($A:$A)-$L$18)),D6," ") ->  | G6: =IF(F6=" "," ",IF(F6<$L$13,F6,"Anomala")) ->  | H6: =IF(G6=$L$14,"PROPOSTA DI AGGIUDICAZIONE","") ->  | L6: =(L10*100-INT(L10*100))*10 -> 4.86
A7: =IF(Ditte!A7>=1,Ditte!A7," ") -> 2 | B7: =G7 ->  | C7: =IF(Ditte!B7=0," ",Ditte!B7) -> MONTANA VALLE DEL LAMONE | D7: =IF(Ditte!D7=0," ",Ditte!D7) -> 0.0599 | E7: =IF(D7=" "," ",$L$8*(1-D7)+$L$7) -> 329184.09 | F7: =IF(AND(A7>$L$18,A7<=(COUNT($A:$A)-$L$18)),D7," ") ->  | H7: =IF(G7=$L$14,"PROPOSTA DI AGGIUDICAZIONE","") ->  | K7: Oneri per la sicurezza | L7: =Ditte!I6 -> 2968
A8: =IF(Ditte!A8>=1,Ditte!A8," ") -> 3 | B8: =G8 ->  | C8: =IF(Ditte!B8=0," ",Ditte!B8) -> BERTI SISTO | D8: =IF(Ditte!D8=0," ",Ditte!D8) -> 0.13844 | E8: =IF(D8=" "," ",$L$8*(1-D8)+$L$7) -> 301930.6 | H8: =IF(G8=$L$14,"PROPOSTA DI AGGIUDICAZIONE","") ->  | K8: Lavori sogg. ribasso | L8: =L9-L7 -> 347001.48
A9: =IF(Ditte!A9>=1,Ditte!A9," ") -> 4 | C9: =IF(Ditte!B9=0," ",Ditte!B9) -> ITALSCAVI SPA | D9: =IF(Ditte!D9=0," ",Ditte!D9) -> 0.1401 | E9: 301354.57 | K9: Valore appalto | L9: =Ditte!I5 -> 349969.48
A10: =IF(Ditte!A10>=1,Ditte!A10," ") -> 5 | B10: 0.14132 | C10: =IF(Ditte!B10=0," ",Ditte!B10) -> AMBROGETTI SRL | D10: =IF(Ditte!D10=0," ",Ditte!D10) -> 0.14132 | E10: 300931.23 | F10: 0.14132 | G10: 0.14132 | K10: Somma ribassi validi | L10: =SUM(F:F) -> 1.83486
A11: =IF(Ditte!A11>=1,Ditte!A11," ") -> 6 | B11: 0.15334 | C11: =IF(Ditte!B11=0," ",Ditte!B11) -> GAETTI COSTRUZIONI SRL | D11: =IF(Ditte!D11=0," ",Ditte!D11) -> 0.15334 | E11: 296760.27 | F11: 0.15334 | G11: 0.15334 | K11: Media ribasso valido | L11: =AVERAGE(F:F) -> 0.1668055
A12: =IF(Ditte!A12>=1,Ditte!A12," ") -> 7 | B12: 0.15573 | C12: =IF(Ditte!B12=0," ",Ditte!B12) -> L.S. NORD SRL | D12: =IF(Ditte!D12=0," ",Ditte!D12) -> 0.15573 | E12: 295930.94 | F12: 0.15573 | G12: 0.15573 | K12: Decremento | L12: =IF(OR(INT(L6)=1,INT(L6)=3,INT(L6)=5,INT(L6)=7,INT(L6)=9),INT(L6)/100,0) -> 0
A13: =IF(Ditte!A13>=1,Ditte!A13," ") -> 8 | B13: 0.15694 | C13: =IF(Ditte!B13=0," ",Ditte!B13) -> EDILIZIA DEL COM.BELLI | D13: =IF(Ditte!D13=0," ",Ditte!D13) -> 0.15694 | E13: 295511.07 | F13: 0.15694 | G13: 0.15694 | K13: Soglia anomalia | L13: =L11-(L11*L12) -> 0.1668055
A14: =IF(Ditte!A14>=1,Ditte!A14," ") -> 9 | B14: 0.16099 | C14: =IF(Ditte!B14=0," ",Ditte!B14) -> ZANNINI | D14: =IF(Ditte!D14=0," ",Ditte!D14) -> 0.16099 | E14: 294105.71 | F14: 0.16099 | G14: 0.16099 | K14: % PROPOSTA DI AGGIUDICAZIONE | L14: =MAX(G:G) -> 0.16413
A15: =IF(Ditte!A15>=1,Ditte!A15," ") -> 10 | B15: 0.1613 | C15: =IF(Ditte!B15=0," ",Ditte!B15) -> COAF SOC.COOP | D15: =IF(Ditte!D15=0," ",Ditte!D15) -> 0.1613 | E15: 293998.14 | F15: 0.1613 | G15: 0.1613 | K15: Nome ditta PROPOSTA DI AGGIUDICAZIONE
A16: =IF(Ditte!A16>=1,Ditte!A16," ") -> 11 | B16: 0.16413 | C16: =IF(Ditte!B16=0," ",Ditte!B16) -> CORMA CONS. | D16: =IF(Ditte!D16=0," ",Ditte!D16) -> 0.16413 | E16: 293016.13 | F16: 0.16413 | G16: 0.16413 | H16: PROPOSTA DI AGGIUDICAZIONE | K16: =IF(COUNTA(H6:H35)-COUNTBLANK(H6:H35)=1,VLOOKUP(L14,B6:C35,2),"C'E' PIU' DI UNA AGGIUDICAZIONE PROVVISORIA") -> CORMA CONS.
A17: =IF(Ditte!A17>=1,Ditte!A17," ") -> 12 | B17: Anomala | C17: =IF(Ditte!B17=0," ",Ditte!B17) -> CSA CONS. SERVIZI APPALTI | D17: =IF(Ditte!D17=0," ",Ditte!D17) -> 0.16771 | E17: 291773.86 | F17: 0.16771 | G17: Anomala
A18: =IF(Ditte!A18>=1,Ditte!A18," ") -> 13 | B18: Anomala | C18: =IF(Ditte!B18=0," ",Ditte!B18) -> CAMAR SOC. COOP. | D18: =IF(Ditte!D18=0," ",Ditte!D18) -> 0.18552 | E18: 285593.77 | F18: 0.18552 | G18: Anomala | K18: ALI N. | L18: =CEILING(0.2*COUNT(A:A),1) -> 4
A19: =IF(Ditte!A19>=1,Ditte!A19," ") -> 14 | B19: Anomala | C19: =IF(Ditte!B19=0," ",Ditte!B19) -> CME | D19: =IF(Ditte!D19=0," ",Ditte!D19) -> 0.18888 | E19: 284427.84 | F19: 0.18888 | G19: Anomala
A20: =IF(Ditte!A20>=1,Ditte!A20," ") -> 15 | B20: Anomala | C20: =IF(Ditte!B20=0," ",Ditte!B20) -> FRATELLI DI CARLO SRL | D20: =IF(Ditte!D20=0," ",Ditte!D20) -> 0.199 | E20: 280916.19 | F20: 0.199 | G20: Anomala
A21: =IF(Ditte!A21>=1,Ditte!A21," ") -> 16 | C21: =IF(Ditte!B21=0," ",Ditte!B21) -> GRENTI SRL | D21: =IF(Ditte!D21=0," ",Ditte!D21) -> 0.19992 | E21: 280596.94
A22: =IF(Ditte!A22>=1,Ditte!A22," ") -> 17 | C22: =IF(Ditte!B22=0," ",Ditte!B22) -> EDIL DUE SRL | D22: =IF(Ditte!D22=0," ",Ditte!D22) -> 0.2025 | E22: 279701.68
A23: =IF(Ditte!A23>=1,Ditte!A23," ") -> 18 | C23: =IF(Ditte!B23=0," ",Ditte!B23) -> CFC COSTRUZIONI | D23: =IF(Ditte!D23=0," ",Ditte!D23) -> 0.21377 | E23: 275790.97
A24: =IF(Ditte!A24>=1,Ditte!A24," ") -> 19 | C24: =IF(Ditte!B24=0," ",Ditte!B24) -> CIPAR SRL | D24: =IF(Ditte!D24=0," ",Ditte!D24) -> 0.2226 | E24: 272726.95 | K24: =Ditte!H16 -> PRESIDENTE DI GARA
A25: =IF(Ditte!A25>=1,Ditte!A25," ") ->  | C25: =IF(Ditte!B25=0," ",Ditte!B25) ->  | D25: =IF(Ditte!D25=0," ",Ditte!D25) ->  | K25: =Ditte!H17 -> Ing. Francesco Capuano
A26: =IF(Ditte!A26>=1,Ditte!A26," ") ->  | C26: =IF(Ditte!B26=0," ",Ditte!B26) ->  | D26: =IF(Ditte!D26=0," ",Ditte!D26) -> 
A27: =IF(Ditte!A27>=1,Ditte!A27," ") ->  | C27: =IF(Ditte!B27=0," ",Ditte!B27) ->  | D27: =IF(Ditte!D27=0," ",Ditte!D27) -> 
A28: =IF(Ditte!A28>=1,Ditte!A28," ") ->  | C28: =IF(Ditte!B28=0," ",Ditte!B28) ->  | D28: =IF(Ditte!D28=0," ",Ditte!D28) -> 
A29: =IF(Ditte!A29>=1,Ditte!A29," ") ->  | C29: =IF(Ditte!B29=0," ",Ditte!B29) ->  | D29: =IF(Ditte!D29=0," ",Ditte!D29) -> 
A30: =IF(Ditte!A30>=1,Ditte!A30," ") ->  | C30: =IF(Ditte!B30=0," ",Ditte!B30) ->  | D30: =IF(Ditte!D30=0," ",Ditte!D30) -> 
A31: =IF(Ditte!A31>=1,Ditte!A31," ") ->  | C31: =IF(Ditte!B31=0," ",Ditte!B31) ->  | D31: =IF(Ditte!D31=0," ",Ditte!D31) -> 
A32: =IF(Ditte!A32>=1,Ditte!A32," ") ->  | C32: =IF(Ditte!B32=0," ",Ditte!B32) ->  | D32: =IF(Ditte!D32=0," ",Ditte!D32) -> 
A33: =IF(Ditte!A33>=1,Ditte!A33," ") ->  | C33: =IF(Ditte!B33=0," ",Ditte!B33) ->  | D33: =IF(Ditte!D33=0," ",Ditte!D33) -> 
A34: =IF(Ditte!A34>=1,Ditte!A34," ") ->  | C34: =IF(Ditte!B34=0," ",Ditte!B34) ->  | D34: =IF(Ditte!D34=0," ",Ditte!D34) -> 
A35: =IF(Ditte!A35>=1,Ditte!A35," ") ->  | B35: =G35 ->  | C35: =IF(Ditte!B35=0," ",Ditte!B35) ->  | D35: =IF(Ditte!D35=0," ",Ditte!D35) ->  | E35: =IF(D35=" "," ",$L$8*(1-D35)+$L$7) ->  | F35: =IF(AND(A35>$L$18,A35<=(COUNT($A:$A)-$L$18)),D35," ") ->  | G35: =IF(F35=" "," ",IF(F35<$L$13,F35,"Anomala")) ->  | H35: =IF(G35=$L$14,"PROPOSTA DI AGGIUDICAZIONE","") -> 

Sheet Metodo c
C1: =Ditte!B1 -> INIZIO ORE 10:40 | D1: Stralcio del verbale di gara | K1: DATA | L1: =Ditte!I1 -> 2017-10-27
A2: =Ditte!A2 -> LEGGE 191/2009 - TERZO ACCORDO DI PROGRAMMA - COD. 1ER1126 - COMUNE DI VENTASSO (RE) - LAVORI DI CONSOLIDAMENTO E MESSA IN SICUREZZA DEL SETTORE OVEST DEL DISSESTO IDROGEOLOGICO CHE COINVOLGE L'ABITATO DI TAVIANO
C3: Offerte pervenute | D3: =Ditte!C3 -> 19 | K3: =Ditte!H12 -> Estrazione del lotto del | L3: =Ditte!I12 -> 2017-10-26
C4: Offerte regolari | D4: =Ditte!C4 -> 19 | K4: =Ditte!H13 -> Seme generatore 1° estratto ruota di Bari n. | L4: =Ditte!I13 -> 16
A5: N | C5: Nome Ditta | D5: Ribasso % | E5: Importo offerto | F5: Valide | G5: Offerte Ammesse | K5: =Ditte!H14 -> Metodo sorteggiato art. 97 DLGS n. 50/16 | L5: =Ditte!I14 -> B)
A6: =IF(Ditte!A6>=1,Ditte!A6," ") -> 1 | B6: =G6 -> 0.01111 | C6: =IF(Ditte!B6=0," ",Ditte!B6) -> CEIS SRL | D6: =IF(Ditte!D6=0," ",Ditte!D6) -> 0.01111 | E6: =IF(D6=" "," ",$L$8*(1-D6)+$L$7) -> 346114.29 | F6: =IF(AND(A6>$L$18,A6<=(COUNT($A:$A)-$L$18)),D6," ") -> 0.01111 | G6: =IF(F6=" "," ",IF(F6<$L$12,F6,"Anomala")) -> 0.01111 | H6: =IF(G6=$L$13,"PROPOSTA DI AGGIUDICAZIONE","") -> 
A7: =IF(Ditte!A7>=1,Ditte!A7," ") -> 2 | B7: =G7 -> 0.0599 | C7: =IF(Ditte!B7=0," ",Ditte!B7) -> MONTANA VALLE DEL LAMONE | D7: =IF(Ditte!D7=0," ",Ditte!D7) -> 0.0599 | E7: 329184.09 | F7: 0.0599 | G7: =IF(F7=" "," ",IF(F7<$L$12,F7,"Anomala")) -> 0.0599 | H7: =IF(G7=$L$13,"PROPOSTA DI AGGIUDICAZIONE","") ->  | K7: Oneri per la sicurezza | L7: =Ditte!I6 -> 2968
A8: =IF(Ditte!A8>=1,Ditte!A8," ") -> 3 | B8: 0.13844 | C8: =IF(Ditte!B8=0," ",Ditte!B8) -> BERTI SISTO | D8: =IF(Ditte!D8=0," ",Ditte!D8) -> 0.13844 | E8: 301930.6 | F8: 0.13844 | G8: 0.13844 | H8: =IF(G8=$L$13,"PROPOSTA DI AGGIUDICAZIONE","") ->  | K8: Lavori sogg. ribasso | L8: =L9-L7 -> 347001.48
A9: =IF(Ditte!A9>=1,Ditte!A9," ") -> 4 | B9: 0.1401 | C9: =IF(Ditte!B9=0," ",Ditte!B9) -> ITALSCAVI SPA | D9: =IF(Ditte!D9=0," ",Ditte!D9) -> 0.1401 | E9: 301354.57 | F9: 0.1401 | G9: 0.1401 | K9: Valore appalto | L9: =Ditte!I5 -> 349969.48
A10: =IF(Ditte!A10>=1,Ditte!A10," ") -> 5 | B10: 0.14132 | C10: =IF(Ditte!B10=0," ",Ditte!B10) -> AMBROGETTI SRL | D10: =IF(Ditte!D10=0," ",Ditte!D10) -> 0.14132 | E10: 300931.23 | F10: 0.14132 | G10: 0.14132 | K10: Media ribasso valido | L10: =AVERAGE(F:F) -> 0.1591158
A11: =IF(Ditte!A11>=1,Ditte!A11," ") -> 6 | B11: 0.15334 | C11: =IF(Ditte!B11=0," ",Ditte!B11) -> GAETTI COSTRUZIONI SRL | D11: =IF(Ditte!D11=0," ",Ditte!D11) -> 0.15334 | E11: 296760.27 | F11: 0.15334 | G11: 0.15334 | K11: Aumento | L11: 0.15
A12: =IF(Ditte!A12>=1,Ditte!A12," ") -> 7 | B12: 0.15573 | C12: =IF(Ditte!B12=0," ",Ditte!B12) -> L.S. NORD SRL | D12: =IF(Ditte!D12=0," ",Ditte!D12) -> 0.15573 | E12: 295930.94 | F12: 0.15573 | G12: 0.15573 | K12: Soglia anomalia | L12: =L10*1.15 -> 0.1829832
A13: =IF(Ditte!A13>=1,Ditte!A13," ") -> 8 | B13: 0.15694 | C13: =IF(Ditte!B13=0," ",Ditte!B13) -> EDILIZIA DEL COM.BELLI | D13: =IF(Ditte!D13=0," ",Ditte!D13) -> 0.15694 | E13: 295511.07 | F13: 0.15694 | G13: 0.15694 | K13: % PROPOSTA DI AGGIUDICAZIONE | L13: =MAX(G:G) -> 0.16771
A14: =IF(Ditte!A14>=1,Ditte!A14," ") -> 9 | B14: 0.16099 | C14: =IF(Ditte!B14=0," ",Ditte!B14) -> ZANNINI | D14: =IF(Ditte!D14=0," ",Ditte!D14) -> 0.16099 | E14: 294105.71 | F14: 0.16099 | G14: 0.16099 | K14: Nome ditta PROPOSTA DI AGGIUDICAZIONE
A15: =IF(Ditte!A15>=1,Ditte!A15," ") -> 10 | B15: 0.1613 | C15: =IF(Ditte!B15=0," ",Ditte!B15) -> COAF SOC.COOP | D15: =IF(Ditte!D15=0," ",Ditte!D15) -> 0.1613 | E15: 293998.14 | F15: 0.1613 | G15: 0.1613 | K15: =IF(COUNTA(H6:H35)-COUNTBLANK(H6:H35)=1,VLOOKUP(L13,B6:C35,2),"C'E' PIU' DI UNA AGGIUDICAZIONE PROVVISORIA") -> CSA CONS. SERVIZI APPALTI
A16: =IF(Ditte!A16>=1,Ditte!A16," ") -> 11 | B16: 0.16413 | C16: =IF(Ditte!B16=0," ",Ditte!B16) -> CORMA CONS. | D16: =IF(Ditte!D16=0," ",Ditte!D16) -> 0.16413 | E16: 293016.13 | F16: 0.16413 | G16: 0.16413
A17: =IF(Ditte!A17>=1,Ditte!A17," ") -> 12 | B17: 0.16771 | C17: =IF(Ditte!B17=0," ",Ditte!B17) -> CSA CONS. SERVIZI APPALTI | D17: =IF(Ditte!D17=0," ",Ditte!D17) -> 0.16771 | E17: 291773.86 | F17: 0.16771 | G17: 0.16771 | H17: PROPOSTA DI AGGIUDICAZIONE
A18: =IF(Ditte!A18>=1,Ditte!A18," ") -> 13 | B18: Anomala | C18: =IF(Ditte!B18=0," ",Ditte!B18) -> CAMAR SOC. COOP. | D18: =IF(Ditte!D18=0," ",Ditte!D18) -> 0.18552 | E18: 285593.77 | F18: 0.18552 | G18: Anomala
A19: =IF(Ditte!A19>=1,Ditte!A19," ") -> 14 | B19: Anomala | C19: =IF(Ditte!B19=0," ",Ditte!B19) -> CME | D19: =IF(Ditte!D19=0," ",Ditte!D19) -> 0.18888 | E19: 284427.84 | F19: 0.18888 | G19: Anomala
A20: =IF(Ditte!A20>=1,Ditte!A20," ") -> 15 | B20: Anomala | C20: =IF(Ditte!B20=0," ",Ditte!B20) -> FRATELLI DI CARLO SRL | D20: =IF(Ditte!D20=0," ",Ditte!D20) -> 0.199 | E20: 280916.19 | F20: 0.199 | G20: Anomala
A21: =IF(Ditte!A21>=1,Ditte!A21," ") -> 16 | B21: Anomala | C21: =IF(Ditte!B21=0," ",Ditte!B21) -> GRENTI SRL | D21: =IF(Ditte!D21=0," ",Ditte!D21) -> 0.19992 | E21: 280596.94 | F21: 0.19992 | G21: Anomala
A22: =IF(Ditte!A22>=1,Ditte!A22," ") -> 17 | B22: Anomala | C22: =IF(Ditte!B22=0," ",Ditte!B22) -> EDIL DUE SRL | D22: =IF(Ditte!D22=0," ",Ditte!D22) -> 0.2025 | E22: 279701.68 | F22: 0.2025 | G22: Anomala
A23: =IF(Ditte!A23>=1,Ditte!A23," ") -> 18 | B23: Anomala | C23: =IF(Ditte!B23=0," ",Ditte!B23) -> CFC COSTRUZIONI | D23: =IF(Ditte!D23=0," ",Ditte!D23) -> 0.21377 | E23: 275790.97 | F23: 0.21377 | G23: Anomala
A24: =IF(Ditte!A24>=1,Ditte!A24," ") -> 19 | B24: Anomala | C24: =IF(Ditte!B24=0," ",Ditte!B24) -> CIPAR SRL | D24: =IF(Ditte!D24=0," ",Ditte!D24) -> 0.2226 | E24: 272726.95 | F24: 0.2226 | G24: Anomala | K24: =Ditte!H16 -> PRESIDENTE DI GARA
A25: =IF(Ditte!A25>=1,Ditte!A25," ") ->  | C25: =IF(Ditte!B25=0," ",Ditte!B25) ->  | D25: =IF(Ditte!D25=0," ",Ditte!D25) ->  | K25: =Ditte!H17 -> Ing. Francesco Capuano
A26: =IF(Ditte!A26>=1,Ditte!A26," ") ->  | C26: =IF(Ditte!B26=0," ",Ditte!B26) ->  | D26: =IF(Ditte!D26=0," ",Ditte!D26) -> 
A27: =IF(Ditte!A27>=1,Ditte!A27," ") ->  | C27: =IF(Ditte!B27=0," ",Ditte!B27) ->  | D27: =IF(Ditte!D27=0," ",Ditte!D27) -> 
A28: =IF(Ditte!A28>=1,Ditte!A28," ") ->  | C28: =IF(Ditte!B28=0," ",Ditte!B28) ->  | D28: =IF(Ditte!D28=0," ",Ditte!D28) -> 
A29: =IF(Ditte!A29>=1,Ditte!A29," ") ->  | C29: =IF(Ditte!B29=0," ",Ditte!B29) ->  | D29: =IF(Ditte!D29=0," ",Ditte!D29) -> 
A30: =IF(Ditte!A30>=1,Ditte!A30," ") ->  | C30: =IF(Ditte!B30=0," ",Ditte!B30) ->  | D30: =IF(Ditte!D30=0," ",Ditte!D30) -> 
A31: =IF(Ditte!A31>=1,Ditte!A31," ") ->  | C31: =IF(Ditte!B31=0," ",Ditte!B31) ->  | D31: =IF(Ditte!D31=0," ",Ditte!D31) -> 
A32: =IF(Ditte!A32>=1,Ditte!A32," ") ->  | C32: =IF(Ditte!B32=0," ",Ditte!B32) ->  | D32: =IF(Ditte!D32=0," ",Ditte!D32) -> 
A33: =IF(Ditte!A33>=1,Ditte!A33," ") ->  | C33: =IF(Ditte!B33=0," ",Ditte!B33) ->  | D33: =IF(Ditte!D33=0," ",Ditte!D33) -> 
A34: =IF(Ditte!A34>=1,Ditte!A34," ") ->  | C34: =IF(Ditte!B34=0," ",Ditte!B34) ->  | D34: =IF(Ditte!D34=0," ",Ditte!D34) -> 
A35: =IF(Ditte!A35>=1,Ditte!A35," ") ->  | B35: =G35 ->  | C35: =IF(Ditte!B35=0," ",Ditte!B35) ->  | D35: =IF(Ditte!D35=0," ",Ditte!D35) ->  | E35: =IF(D35=" "," ",$L$8*(1-D35)+$L$7) ->  | F35: =IF(AND(A35>$L$18,A35<=(COUNT($A:$A)-$L$18)),D35," ") ->  | G35: =IF(F35=" "," ",IF(F35<$L$12,F35,"Anomala")) ->  | H35: =IF(G35=$L$13,"PROPOSTA DI AGGIUDICAZIONE","") -> 

Sheet Metodo d
C1: =Ditte!B1 -> INIZIO ORE 10:40 | D1: Stralcio del verbale di gara | K1: DATA | L1: =Ditte!I1 -> 2017-10-27
A2: =Ditte!A2 -> LEGGE 191/2009 - TERZO ACCORDO DI PROGRAMMA - COD. 1ER1126 - COMUNE DI VENTASSO (RE) - LAVORI DI CONSOLIDAMENTO E MESSA IN SICUREZZA DEL SETTORE OVEST DEL DISSESTO IDROGEOLOGICO CHE COINVOLGE L'ABITATO DI TAVIANO
C3: Offerte pervenute | D3: =Ditte!C3 -> 19 | K3: =Ditte!H12 -> Estrazione del lotto del | L3: =Ditte!I12 -> 2017-10-26
C4: Offerte regolari | D4: =Ditte!C4 -> 19 | K4: =Ditte!H13 -> Seme generatore 1° estratto ruota di Bari n. | L4: =Ditte!I13 -> 16
A5: N | C5: Nome Ditta | D5: Ribasso % | E5: Importo offerto | F5: Valide | G5: Offerte Ammesse | K5: =Ditte!H14 -> Metodo sorteggiato art. 97 DLGS n. 50/16 | L5: =Ditte!I14 -> B)
A6: =IF(Ditte!A6>=1,Ditte!A6," ") -> 1 | B6: =G6 -> 0.01111 | C6: =IF(Ditte!B6=0," ",Ditte!B6) -> CEIS SRL | D6: =IF(Ditte!D6=0," ",Ditte!D6) -> 0.01111 | E6: =IF(D6=" "," ",$L$8*(1-D6)+$L$7) -> 346114.29 | F6: =IF(AND(A6>$L$18,A6<=(COUNT($A:$A)-$L$18)),D6," ") -> 0.01111 | G6: =IF(F6=" "," ",IF(F6<$L$12,F6,"Anomala")) -> 0.01111 | H6: =IF(G6=$L$13,"PROPOSTA DI AGGIUDICAZIONE","") -> 
A7: =IF(Ditte!A7>=1,Ditte!A7," ") -> 2 | B7: =G7 -> 0.0599 | C7: =IF(Ditte!B7=0," ",Ditte!B7) -> MONTANA VALLE DEL LAMONE | D7: =IF(Ditte!D7=0," ",Ditte!D7) -> 0.0599 | E7: 329184.09 | F7: 0.0599 | G7: =IF(F7=" "," ",IF(F7<$L$12,F7,"Anomala")) -> 0.0599 | H7: =IF(G7=$L$13,"PROPOSTA DI AGGIUDICAZIONE","") ->  | K7: Oneri per la sicurezza | L7: =Ditte!I6 -> 2968
A8: =IF(Ditte!A8>=1,Ditte!A8," ") -> 3 | B8: 0.13844 | C8: =IF(Ditte!B8=0," ",Ditte!B8) -> BERTI SISTO | D8: =IF(Ditte!D8=0," ",Ditte!D8) -> 0.13844 | E8: 301930.6 | F8: 0.13844 | G8: 0.13844 | H8: =IF(G8=$L$13,"PROPOSTA DI AGGIUDICAZIONE","") ->  | K8: Lavori sogg. ribasso | L8: =L9-L7 -> 347001.48
A9: =IF(Ditte!A9>=1,Ditte!A9," ") -> 4 | B9: 0.1401 | C9: =IF(Ditte!B9=0," ",Ditte!B9) -> ITALSCAVI SPA | D9: =IF(Ditte!D9=0," ",Ditte!D9) -> 0.1401 | E9: 301354.57 | F9: 0.1401 | G9: 0.1401 | K9: Valore appalto | L9: =Ditte!I5 -> 349969.48
A10: =IF(Ditte!A10>=1,Ditte!A10," ") -> 5 | B10: 0.14132 | C10: =IF(Ditte!B10=0," ",Ditte!B10) -> AMBROGETTI SRL | D10: =IF(Ditte!D10=0," ",Ditte!D10) -> 0.14132 | E10: 300931.23 | F10: 0.14132 | G10: 0.14132 | K10: Media ribasso valido | L10: =AVERAGE(F:F) -> 0.1591158
A11: =IF(Ditte!A11>=1,Ditte!A11," ") -> 6 | B11: 0.15334 | C11: =IF(Ditte!B11=0," ",Ditte!B11) -> GAETTI COSTRUZIONI SRL | D11: =IF(Ditte!D11=0," ",Ditte!D11) -> 0.15334 | E11: 296760.27 | F11: 0.15334 | G11: 0.15334 | K11: Aumento | L11: 0.1
A12: =IF(Ditte!A12>=1,Ditte!A12," ") -> 7 | B12: 0.15573 | C12: =IF(Ditte!B12=0," ",Ditte!B12) -> L.S. NORD SRL | D12: =IF(Ditte!D12=0," ",Ditte!D12) -> 0.15573 | E12: 295930.94 | F12: 0.15573 | G12: 0.15573 | K12: Soglia anomalia | L12: =L10*1.1 -> 0.1750274
A13: =IF(Ditte!A13>=1,Ditte!A13," ") -> 8 | B13: 0.15694 | C13: =IF(Ditte!B13=0," ",Ditte!B13) -> EDILIZIA DEL COM.BELLI | D13: =IF(Ditte!D13=0," ",Ditte!D13) -> 0.15694 | E13: 295511.07 | F13: 0.15694 | G13: 0.15694 | K13: % PROPOSTA DI AGGIUDICAZIONE | L13: =MAX(G:G) -> 0.16771
A14: =IF(Ditte!A14>=1,Ditte!A14," ") -> 9 | B14: 0.16099 | C14: =IF(Ditte!B14=0," ",Ditte!B14) -> ZANNINI | D14: =IF(Ditte!D14=0," ",Ditte!D14) -> 0.16099 | E14: 294105.71 | F14: 0.16099 | G14: 0.16099 | K14: Nome ditta PROPOSTA DI AGGIUDICAZIONE
A15: =IF(Ditte!A15>=1,Ditte!A15," ") -> 10 | B15: 0.1613 | C15: =IF(Ditte!B15=0," ",Ditte!B15) -> COAF SOC.COOP | D15: =IF(Ditte!D15=0," ",Ditte!D15) -> 0.1613 | E15: 293998.14 | F15: 0.1613 | G15: 0.1613 | K15: =IF(COUNTA(H6:H35)-COUNTBLANK(H6:H35)=1,VLOOKUP(L13,B6:C35,2),"C'E' PIU' DI UNA AGGIUDICAZIONE PROVVISORIA") -> CSA CONS. SERVIZI APPALTI
A16: =IF(Ditte!A16>=1,Ditte!A16," ") -> 11 | B16: 0.16413 | C16: =IF(Ditte!B16=0," ",Ditte!B16) -> CORMA CONS. | D16: =IF(Ditte!D16=0," ",Ditte!D16) -> 0.16413 | E16: 293016.13 | F16: 0.16413 | G16: 0.16413
A17: =IF(Ditte!A17>=1,Ditte!A17," ") -> 12 | B17: 0.16771 | C17: =IF(Ditte!B17=0," ",Ditte!B17) -> CSA CONS. SERVIZI APPALTI | D17: =IF(Ditte!D17=0," ",Ditte!D17) -> 0.16771 | E17: 291773.86 | F17: 0.16771 | G17: 0.16771 | H17: PROPOSTA DI AGGIUDICAZIONE
A18: =IF(Ditte!A18>=1,Ditte!A18," ") -> 13 | B18: Anomala | C18: =IF(Ditte!B18=0," ",Ditte!B18) -> CAMAR SOC. COOP. | D18: =IF(Ditte!D18=0," ",Ditte!D18) -> 0.18552 | E18: 285593.77 | F18: 0.18552 | G18: Anomala
A19: =IF(Ditte!A19>=1,Ditte!A19," ") -> 14 | B19: Anomala | C19: =IF(Ditte!B19=0," ",Ditte!B19) -> CME | D19: =IF(Ditte!D19=0," ",Ditte!D19) -> 0.18888 | E19: 284427.84 | F19: 0.18888 | G19: Anomala
A20: =IF(Ditte!A20>=1,Ditte!A20," ") -> 15 | B20: Anomala | C20: =IF(Ditte!B20=0," ",Ditte!B20) -> FRATELLI DI CARLO SRL | D20: =IF(Ditte!D20=0," ",Ditte!D20) -> 0.199 | E20: 280916.19 | F20: 0.199 | G20: Anomala
A21: =IF(Ditte!A21>=1,Ditte!A21," ") -> 16 | B21: Anomala | C21: =IF(Ditte!B21=0," ",Ditte!B21) -> GRENTI SRL | D21: =IF(Ditte!D21=0," ",Ditte!D21) -> 0.19992 | E21: 280596.94 | F21: 0.19992 | G21: Anomala
A22: =IF(Ditte!A22>=1,Ditte!A22," ") -> 17 | B22: Anomala | C22: =IF(Ditte!B22=0," ",Ditte!B22) -> EDIL DUE SRL | D22: =IF(Ditte!D22=0," ",Ditte!D22) -> 0.2025 | E22: 279701.68 | F22: 0.2025 | G22: Anomala
A23: =IF(Ditte!A23>=1,Ditte!A23," ") -> 18 | B23: Anomala | C23: =IF(Ditte!B23=0," ",Ditte!B23) -> CFC COSTRUZIONI | D23: =IF(Ditte!D23=0," ",Ditte!D23) -> 0.21377 | E23: 275790.97 | F23: 0.21377 | G23: Anomala
A24: =IF(Ditte!A24>=1,Ditte!A24," ") -> 19 | B24: Anomala | C24: =IF(Ditte!B24=0," ",Ditte!B24) -> CIPAR SRL | D24: =IF(Ditte!D24=0," ",Ditte!D24) -> 0.2226 | E24: 272726.95 | F24: 0.2226 | G24: Anomala | K24: =Ditte!H16 -> PRESIDENTE DI GARA
A25: =IF(Ditte!A25>=1,Ditte!A25," ") ->  | C25: =IF(Ditte!B25=0," ",Ditte!B25) ->  | D25: =IF(Ditte!D25=0," ",Ditte!D25) ->  | K25: =Ditte!H17 -> Ing. Francesco Capuano
A26: =IF(Ditte!A26>=1,Ditte!A26," ") ->  | C26: =IF(Ditte!B26=0," ",Ditte!B26) ->  | D26: =IF(Ditte!D26=0," ",Ditte!D26) -> 
A27: =IF(Ditte!A27>=1,Ditte!A27," ") ->  | C27: =IF(Ditte!B27=0," ",Ditte!B27) ->  | D27: =IF(Ditte!D27=0," ",Ditte!D27) -> 
A28: =IF(Ditte!A28>=1,Ditte!A28," ") ->  | C28: =IF(Ditte!B28=0," ",Ditte!B28) ->  | D28: =IF(Ditte!D28=0," ",Ditte!D28) -> 
A29: =IF(Ditte!A29>=1,Ditte!A29," ") ->  | C29: =IF(Ditte!B29=0," ",Ditte!B29) ->  | D29: =IF(Ditte!D29=0," ",Ditte!D29) -> 
A30: =IF(Ditte!A30>=1,Ditte!A30," ") ->  | C30: =IF(Ditte!B30=0," ",Ditte!B30) ->  | D30: =IF(Ditte!D30=0," ",Ditte!D30) -> 
A31: =IF(Ditte!A31>=1,Ditte!A31," ") ->  | C31: =IF(Ditte!B31=0," ",Ditte!B31) ->  | D31: =IF(Ditte!D31=0," ",Ditte!D31) -> 
A32: =IF(Ditte!A32>=1,Ditte!A32," ") ->  | C32: =IF(Ditte!B32=0," ",Ditte!B32) ->  | D32: =IF(Ditte!D32=0," ",Ditte!D32) -> 
A33: =IF(Ditte!A33>=1,Ditte!A33," ") ->  | C33: =IF(Ditte!B33=0," ",Ditte!B33) ->  | D33: =IF(Ditte!D33=0," ",Ditte!D33) -> 
A34: =IF(Ditte!A34>=1,Ditte!A34," ") ->  | C34: =IF(Ditte!B34=0," ",Ditte!B34) ->  | D34: =IF(Ditte!D34=0," ",Ditte!D34) -> 
A35: =IF(Ditte!A35>=1,Ditte!A35," ") ->  | B35: =G35 ->  | C35: =IF(Ditte!B35=0," ",Ditte!B35) ->  | D35: =IF(Ditte!D35=0," ",Ditte!D35) ->  | E35: =IF(D35=" "," ",$L$8*(1-D35)+$L$7) ->  | F35: =IF(AND(A35>$L$18,A35<=(COUNT($A:$A)-$L$18)),D35," ") ->  | G35: =IF(F35=" "," ",IF(F35<$L$12,F35,"Anomala")) ->  | H35: =IF(G35=$L$13,"PROPOSTA DI AGGIUDICAZIONE","") -> 

Sheet Metodo e
C1: =Ditte!B1 -> INIZIO ORE 10:40 | D1: Stralcio del verbale di gara | L1: DATA | M1: =Ditte!I1 -> 2017-10-27
A2: =Ditte!A2 -> LEGGE 191/2009 - TERZO ACCORDO DI PROGRAMMA - COD. 1ER1126 - COMUNE DI VENTASSO (RE) - LAVORI DI CONSOLIDAMENTO E MESSA IN SICUREZZA DEL SETTORE OVEST DEL DISSESTO IDROGEOLOGICO CHE COINVOLGE L'ABITATO DI TAVIANO
C3: Offerte pervenute | D3: =Ditte!C3 -> 19 | L3: =Ditte!H12 -> Estrazione del lotto del | M3: =Ditte!I12 -> 2017-10-26
C4: Offerte regolari | D4: =Ditte!C4 -> 19 | L4: =Ditte!H13 -> Seme generatore 1° estratto ruota di Bari n. | M4: =Ditte!I13 -> 16
A5: N | C5: Nome Ditta | D5: Ribasso % | E5: Importo offerto | F5: Valide | G5: Scostamento | H5: Offerte Ammesse | L5: =Ditte!H14 -> Metodo sorteggiato art. 97 DLGS n. 50/16 | M5: =Ditte!I14 -> B)
A6: =IF(Ditte!A6>=1,Ditte!A6," ") -> 1 | B6: =H6 ->  | C6: =IF(Ditte!B6=0," ",Ditte!B6) -> CEIS SRL | D6: =IF(Ditte!D6=0," ",Ditte!D6) -> 0.01111 | E6: =IF(D6=" "," ",$M$8*(1-D6)+$M$7) -> 346114.29 | F6: =IF(AND(A6>$M$19,A6<=(COUNT($A:$A)-$M$19)),D6," ") ->  | G6: =IF(F6=" "," ",IF(F6>=MediaR,F6-MediaR,"")) ->  | H6: =IF(F6=" "," ",IF(F6<$M$14,F6,"Anomala")) ->  | I6: =IF(H6=$M$15,"PROPOSTA DI AGGIUDICAZIONE","") -> 
A7: =IF(Ditte!A7>=1,Ditte!A7," ") -> 2 | B7: =H7 ->  | C7: =IF(Ditte!B7=0," ",Ditte!B7) -> MONTANA VALLE DEL LAMONE | D7: =IF(Ditte!D7=0," ",Ditte!D7) -> 0.0599 | E7: 329184.09 | F7: =IF(AND(A7>$M$19,A7<=(COUNT($A:$A)-$M$19)),D7," ") ->  | I7: =IF(H7=$M$15,"PROPOSTA DI AGGIUDICAZIONE","") ->  | L7: Oneri per la sicurezza | M7: =Ditte!I6 -> 2968
A8: =IF(Ditte!A8>=1,Ditte!A8," ") -> 3 | B8: 0.13844 | C8: =IF(Ditte!B8=0," ",Ditte!B8) -> BERTI SISTO | D8: =IF(Ditte!D8=0," ",Ditte!D8) -> 0.13844 | E8: 301930.6 | F8: =IF(AND(A8>$M$19,A8<=(COUNT($A:$A)-$M$19)),D8," ") -> 0.13844 | H8: 0.13844 | I8: =IF(H8=$M$15,"PROPOSTA DI AGGIUDICAZIONE","") ->  | L8: Lavori sogg. ribasso | M8: =M9-M7 -> 347001.48
A9: =IF(Ditte!A9>=1,Ditte!A9," ") -> 4 | B9: 0.1401 | C9: =IF(Ditte!B9=0," ",Ditte!B9) -> ITALSCAVI SPA | D9: =IF(Ditte!D9=0," ",Ditte!D9) -> 0.1401 | E9: 301354.57 | F9: 0.1401 | H9: 0.1401 | I9: =IF(H9=$M$15,"PROPOSTA DI AGGIUDICAZIONE","") ->  | L9: Valore appalto | M9: =Ditte!I5 -> 349969.48
A10: =IF(Ditte!A10>=1,Ditte!A10," ") -> 5 | B10: 0.14132 | C10: =IF(Ditte!B10=0," ",Ditte!B10) -> AMBROGETTI SRL | D10: =IF(Ditte!D10=0," ",Ditte!D10) -> 0.14132 | E10: 300931.23 | F10: 0.14132 | H10: 0.14132 | L10: Media ribasso valido | M10: =AVERAGE(F:F) -> 0.1677213
A11: =IF(Ditte!A11>=1,Ditte!A11," ") -> 6 | B11: 0.15334 | C11: =IF(Ditte!B11=0," ",Ditte!B11) -> GAETTI COSTRUZIONI SRL | D11: =IF(Ditte!D11=0," ",Ditte!D11) -> 0.15334 | E11: 296760.27 | F11: 0.15334 | H11: 0.15334 | L11: Media scostamenti | M11: =AVERAGE(G:G) -> 0.0237828
A12: =IF(Ditte!A12>=1,Ditte!A12," ") -> 7 | B12: 0.15573 | C12: =IF(Ditte!B12=0," ",Ditte!B12) -> L.S. NORD SRL | D12: =IF(Ditte!D12=0," ",Ditte!D12) -> 0.15573 | E12: 295930.94 | F12: 0.15573 | H12: 0.15573 | L12: Coefficiente* | M12: =M21 -> 0.9
A13: =IF(Ditte!A13>=1,Ditte!A13," ") -> 8 | B13: 0.15694 | C13: =IF(Ditte!B13=0," ",Ditte!B13) -> EDILIZIA DEL COM.BELLI | D13: =IF(Ditte!D13=0," ",Ditte!D13) -> 0.15694 | E13: 295511.07 | F13: 0.15694 | H13: 0.15694 | L13: Media scostamenti modificata | M13: =M11*M12 -> 0.0214045
A14: =IF(Ditte!A14>=1,Ditte!A14," ") -> 9 | B14: 0.16099 | C14: =IF(Ditte!B14=0," ",Ditte!B14) -> ZANNINI | D14: =IF(Ditte!D14=0," ",Ditte!D14) -> 0.16099 | E14: 294105.71 | F14: 0.16099 | H14: 0.16099 | L14: Soglia anomalia | M14: =M10+M13 -> 0.1891258
A15: =IF(Ditte!A15>=1,Ditte!A15," ") -> 10 | B15: 0.1613 | C15: =IF(Ditte!B15=0," ",Ditte!B15) -> COAF SOC.COOP | D15: =IF(Ditte!D15=0," ",Ditte!D15) -> 0.1613 | E15: 293998.14 | F15: 0.1613 | H15: 0.1613 | L15: % PROPOSTA DI AGGIUDICAZIONE | M15: =MAX(H:H) -> 0.18888
A16: =IF(Ditte!A16>=1,Ditte!A16," ") -> 11 | B16: 0.16413 | C16: =IF(Ditte!B16=0," ",Ditte!B16) -> CORMA CONS. | D16: =IF(Ditte!D16=0," ",Ditte!D16) -> 0.16413 | E16: 293016.13 | F16: 0.16413 | H16: 0.16413 | L16: Nome ditta PROPOSTA DI AGGIUDICAZIONE
A17: =IF(Ditte!A17>=1,Ditte!A17," ") -> 12 | B17: 0.16771 | C17: =IF(Ditte!B17=0," ",Ditte!B17) -> CSA CONS. SERVIZI APPALTI | D17: =IF(Ditte!D17=0," ",Ditte!D17) -> 0.16771 | E17: 291773.86 | F17: 0.16771 | G17: 0.0009045 | H17: 0.16771 | L17: =IF(COUNTA(I6:I35)-COUNTBLANK(I6:I35)=1,VLOOKUP(M15,B6:C35,2),"C'E' PIU' DI UNA AGGIUDICAZIONE PROVVISORIA") -> CME
A18: =IF(Ditte!A18>=1,Ditte!A18," ") -> 13 | B18: 0.18552 | C18: =IF(Ditte!B18=0," ",Ditte!B18) -> CAMAR SOC. COOP. | D18: =IF(Ditte!D18=0," ",Ditte!D18) -> 0.18552 | E18: 285593.77 | F18: 0.18552 | G18: 0.0187145 | H18: 0.18552
A19: =IF(Ditte!A19>=1,Ditte!A19," ") -> 14 | B19: 0.18888 | C19: =IF(Ditte!B19=0," ",Ditte!B19) -> CME | D19: =IF(Ditte!D19=0," ",Ditte!D19) -> 0.18888 | E19: 284427.84 | F19: 0.18888 | G19: 0.0220745 | H19: 0.18888 | I19: PROPOSTA DI AGGIUDICAZIONE | L19: ALI N. | M19: =CEILING(0.1*COUNT(A:A),1) -> 2
A20: =IF(Ditte!A20>=1,Ditte!A20," ") -> 15 | B20: Anomala | C20: =IF(Ditte!B20=0," ",Ditte!B20) -> FRATELLI DI CARLO SRL | D20: =IF(Ditte!D20=0," ",Ditte!D20) -> 0.199 | E20: 280916.19 | F20: 0.199 | G20: 0.0321945 | H20: Anomala | L20: * Valori coefficiente: 0,6; 0,7; 0,8; 0,9
A21: =IF(Ditte!A21>=1,Ditte!A21," ") -> 16 | B21: Anomala | C21: =IF(Ditte!B21=0," ",Ditte!B21) -> GRENTI SRL | D21: =IF(Ditte!D21=0," ",Ditte!D21) -> 0.19992 | E21: 280596.94 | F21: 0.19992 | G21: 0.0331145 | H21: Anomala | L21: Sorteggiato il valore | M21: 0.9
A22: =IF(Ditte!A22>=1,Ditte!A22," ") -> 17 | B22: Anomala | C22: =IF(Ditte!B22=0," ",Ditte!B22) -> EDIL DUE SRL | D22: =IF(Ditte!D22=0," ",Ditte!D22) -> 0.2025 | E22: 279701.68 | F22: 0.2025 | G22: 0.0356945 | H22: Anomala
A23: =IF(Ditte!A23>=1,Ditte!A23," ") -> 18 | C23: =IF(Ditte!B23=0," ",Ditte!B23) -> CFC COSTRUZIONI | D23: =IF(Ditte!D23=0," ",Ditte!D23) -> 0.21377 | E23: 275790.97
A24: =IF(Ditte!A24>=1,Ditte!A24," ") -> 19 | D24: =IF(Ditte!D24=0," ",Ditte!D24) -> 0.2226 | E24: 272726.95 | L24: =Ditte!H16 -> PRESIDENTE DI GARA
A25: =IF(Ditte!A25>=1,Ditte!A25," ") ->  | C25: =IF(Ditte!B25=0," ",Ditte!B25) ->  | D25: =IF(Ditte!D25=0," ",Ditte!D25) ->  | L25: =Ditte!H17 -> Ing. Francesco Capuano
A26: =IF(Ditte!A26>=1,Ditte!A26," ") ->  | C26: =IF(Ditte!B26=0," ",Ditte!B26) ->  | D26: =IF(Ditte!D26=0," ",Ditte!D26) -> 
A27: =IF(Ditte!A27>=1,Ditte!A27," ") ->  | C27: =IF(Ditte!B27=0," ",Ditte!B27) ->  | D27: =IF(Ditte!D27=0," ",Ditte!D27) -> 
A28: =IF(Ditte!A28>=1,Ditte!A28," ") ->  | C28: =IF(Ditte!B28=0," ",Ditte!B28) ->  | D28: =IF(Ditte!D28=0," ",Ditte!D28) -> 
A29: =IF(Ditte!A29>=1,Ditte!A29," ") ->  | C29: =IF(Ditte!B29=0," ",Ditte!B29) ->  | D29: =IF(Ditte!D29=0," ",Ditte!D29) -> 
A30: =IF(Ditte!A30>=1,Ditte!A30," ") ->  | C30: =IF(Ditte!B30=0," ",Ditte!B30) ->  | D30: =IF(Ditte!D30=0," ",Ditte!D30) -> 
A31: =IF(Ditte!A31>=1,Ditte!A31," ") ->  | C31: =IF(Ditte!B31=0," ",Ditte!B31) ->  | D31: =IF(Ditte!D31=0," ",Ditte!D31) -> 
A32: =IF(Ditte!A32>=1,Ditte!A32," ") ->  | C32: =IF(Ditte!B32=0," ",Ditte!B32) ->  | D32: =IF(Ditte!D32=0," ",Ditte!D32) -> 
A33: =IF(Ditte!A33>=1,Ditte!A33," ") ->  | C33: =IF(Ditte!B33=0," ",Ditte!B33) ->  | D33: =IF(Ditte!D33=0," ",Ditte!D33) -> 
A34: =IF(Ditte!A34>=1,Ditte!A34," ") ->  | C34: =IF(Ditte!B34=0," ",Ditte!B34) ->  | D34: =IF(Ditte!D34=0," ",Ditte!D34) -> 
A35: =IF(Ditte!A35>=1,Ditte!A35," ") ->  | B35: =H35 ->  | C35: =IF(Ditte!B35=0," ",Ditte!B35) ->  | D35: =IF(Ditte!D35=0," ",Ditte!D35) ->  | E35: =IF(D35=" "," ",$M$8*(1-D35)+$M$7) ->  | F35: =IF(AND(A35>$M$19,A35<=(COUNT($A:$A)-$M$19)),D35," ") ->  | G35: =IF(F35=" "," ",IF(F35>=MediaR,F35-MediaR,"")) ->  | H35: =IF(F35=" "," ",IF(F35<$M$14,F35,"Anomala")) ->  | I35: =IF(H35=$M$15,"PROPOSTA DI AGGIUDICAZIONE","") -> 

Sheet Max Rib
C1: =Ditte!B1 -> INIZIO ORE 10:40 | D1: Stralcio del verbale di gara | K1: DATA | L1: =Ditte!I1 -> 2017-10-27
A2: =Ditte!A2 -> LEGGE 191/2009 - TERZO ACCORDO DI PROGRAMMA - COD. 1ER1126 - COMUNE DI VENTASSO (RE) - LAVORI DI CONSOLIDAMENTO E MESSA IN SICUREZZA DEL SETTORE OVEST DEL DISSESTO IDROGEOLOGICO CHE COINVOLGE L'ABITATO DI TAVIANO
C3: Offerte pervenute | D3: =Ditte!C3 -> 19
C4: Offerte regolari | D4: =Ditte!C4 -> 19
A5: N | C5: Nome Ditta | D5: Ribasso % | E5: Importo offerto | F5: Valide | G5: Offerte Ammesse
A6: =IF(Ditte!A6>=1,Ditte!A6," ") -> 1 | B6: =G6 -> 0.01111 | C6: =IF(Ditte!B6=0," ",Ditte!B6) -> CEIS SRL | D6: =IF(Ditte!D6=0," ",Ditte!D6) -> 0.01111 | E6: =IF(D6=" "," ",$L$8*(1-D6)+$L$7) -> 346114.29 | F6: =IF(AND(A6>$L$18,A6<=(COUNT($A:$A)-$L$18)),D6," ") -> 0.01111 | G6: =IF(F6=" "," ",IF(F6<=$L$10,F6,"Anomala")) -> 0.01111 | H6: =IF(G6=$L$11,"PROPOSTA DI AGGIUDICAZIONE","") -> 
A7: =IF(Ditte!A7>=1,Ditte!A7," ") -> 2 | B7: =G7 -> 0.0599 | C7: =IF(Ditte!B7=0," ",Ditte!B7) -> MONTANA VALLE DEL LAMONE | D7: =IF(Ditte!D7=0," ",Ditte!D7) -> 0.0599 | E7: 329184.09 | F7: 0.0599 | G7: =IF(F7=" "," ",IF(F7<=$L$10,F7,"Anomala")) -> 0.0599 | K7: Oneri per la sicurezza | L7: =Ditte!I6 -> 2968
A8: =IF(Ditte!A8>=1,Ditte!A8," ") -> 3 | B8: 0.13844 | C8: =IF(Ditte!B8=0," ",Ditte!B8) -> BERTI SISTO | D8: =IF(Ditte!D8=0," ",Ditte!D8) -> 0.13844 | E8: 301930.6 | F8: 0.13844 | G8: 0.13844 | K8: Lavori sogg. ribasso | L8: =L9-L7 -> 347001.48
A9: =IF(Ditte!A9>=1,Ditte!A9," ") -> 4 | B9: 0.1401 | C9: =IF(Ditte!B9=0," ",Ditte!B9) -> ITALSCAVI SPA | D9: =IF(Ditte!D9=0," ",Ditte!D9) -> 0.1401 | E9: 301354.57 | F9: 0.1401 | G9: 0.1401 | K9: Valore appalto | L9: =Ditte!I5 -> 349969.48
A10: =IF(Ditte!A10>=1,Ditte!A10," ") -> 5 | B10: 0.14132 | C10: =IF(Ditte!B10=0," ",Ditte!B10) -> AMBROGETTI SRL | D10: =IF(Ditte!D10=0," ",Ditte!D10) -> 0.14132 | E10: 300931.23 | F10: 0.14132 | G10: 0.14132 | K10: Massimo ribasso valido | L10: =MAX(F:F) -> 0.1613
A11: =IF(Ditte!A11>=1,Ditte!A11," ") -> 6 | B11: 0.15334 | C11: =IF(Ditte!B11=0," ",Ditte!B11) -> GAETTI COSTRUZIONI SRL | D11: =IF(Ditte!D11=0," ",Ditte!D11) -> 0.15334 | E11: 296760.27 | F11: 0.15334 | G11: 0.15334 | K11: % PROPOSTA DI AGGIUDICAZIONE | L11: =$L$10 -> 0.1613
A12: =IF(Ditte!A12>=1,Ditte!A12," ") -> 7 | B12: 0.15573 | C12: =IF(Ditte!B12=0," ",Ditte!B12) -> L.S. NORD SRL | D12: =IF(Ditte!D12=0," ",Ditte!D12) -> 0.15573 | E12: 295930.94 | F12: 0.15573 | G12: 0.15573 | K12: Nome ditta PROPOSTA DI AGGIUDICAZIONE
A13: =IF(Ditte!A13>=1,Ditte!A13," ") -> 8 | B13: 0.15694 | C13: =IF(Ditte!B13=0," ",Ditte!B13) -> EDILIZIA DEL COM.BELLI | D13: =IF(Ditte!D13=0," ",Ditte!D13) -> 0.15694 | E13: 295511.07 | F13: 0.15694 | G13: 0.15694 | K13: =IF(COUNTA(H6:H15)-COUNTBLANK(H6:H15)=1,VLOOKUP(L11,B6:C15,2),"C'E' PIU' DI UNA AGGIUDICAZIONE PROVVISORIA") -> COAF SOC.COOP
A14: =IF(Ditte!A14>=1,Ditte!A14," ") -> 9 | B14: 0.16099 | C14: =IF(Ditte!B14=0," ",Ditte!B14) -> ZANNINI | D14: =IF(Ditte!D14=0," ",Ditte!D14) -> 0.16099 | E14: 294105.71 | F14: 0.16099 | G14: 0.16099
A15: =IF(Ditte!A15>=1,Ditte!A15," ") -> 10 | B15: 0.1613 | C15: =IF(Ditte!B15=0," ",Ditte!B15) -> COAF SOC.COOP | D15: =IF(Ditte!D15=0," ",Ditte!D15) -> 0.1613 | E15: 293998.14 | F15: 0.1613 | G15: 0.1613 | H15: PROPOSTA DI AGGIUDICAZIONE
K16: =Ditte!H16 -> PRESIDENTE DI GARA
K17: =Ditte!H17 -> Ing. Francesco Capuano
